bitfinex-derivatives/quotes_ETHF0:USTF0_20250910
["timestamp","ask_amount","ask_price","bid_price","bid_amount"]
[1757484182913,32.3846,4309.2,4309.1,6.22962183]
[1757484183111,32.3846,4309.2,4309.1,6.86607336]
[1757484185018,0.3223,4310.4,4309.1,5.91942183]
[1757484185317,0.5603,4310.3,4310.2,0.0022]
[1757484185515,0.5603,4310.3,4310.2,0.49246789]
[1757484185714,0.7704,4310.3,4310.2,0.49246789]
[1757484187412,0.5603,4310.3,4310.2,0.49246789]
[1757484187812,0.3223,4310.3,4310.2,0.49246789]
[1757484188018,0.5603,4310.3,4310.2,0.49246789]
[1757484189019,0.3223,4310.3,4310.2,4.49246789]
[1757484189219,0.5603,4310.3,4310.2,4.49246789]
[1757484189917,0.238,4310.3,4310.2,4.49246789]
[1757484191610,0.3223,4311.0,4310.2,4.49246789]
[1757484191918,0.238,4310.9,4310.8,1.24764391]
[1757484192124,0.5603,4310.9,4310.8,0.49246789]
[1757484195025,0.9739,4310.9,4310.8,0.49246789]
[1757484195212,0.9739,4310.9,4310.8,1.32098233]
[1757484195824,2.00645394,4310.9,4310.8,0.49026789]
[1757484197123,2.00645394,4310.9,4310.8,1.11139545]
[1757484198222,2.00645394,4310.9,4310.8,1.10882221]
[1757484202330,2.00645394,4310.9,4310.8,0.48769465]
[1757484204625,0.7087,4310.2,4310.1,0.62112756]
[1757484204828,1.97925394,4310.2,4310.1,0.19082737]
[1757484205331,0.1248,4310.0,4309.8,0.62112756]
[1757484205531,0.7087,4309.9,4309.8,0.62112756]
[1757484205733,0.7087,4309.9,4309.8,0.19092322]
[1757484207231,0.7087,4309.9,4309.8,1.01943766]
[1757484208538,0.7087,4309.9,4309.8,0.19092322]
[1757484211740,0.5089,4309.9,4309.8,0.19092322]
[1757484212135,0.5089,4309.9,4309.8,1.43636713]
[1757484213034,0.5089,4309.9,4309.8,0.19092322]
[1757484213739,0.7087,4309.9,4309.8,0.19092322]
[1757484215938,0.5089,4309.9,4309.8,0.19092322]
[1757484216535,0.7087,4309.9,4309.8,0.48568772]
[1757484237257,0.7087,4309.9,4309.8,0.48539961]
[1757484241360,0.9467,4309.9,4309.8,0.48539961]
[1757484242455,0.5089,4309.9,4309.8,0.48539961]
[1757484242659,0.5461,4309.9,4309.8,0.48539961]
[1757484243654,0.7457,4309.9,4309.8,0.48539961]
[1757484243855,0.94,4309.9,4309.8,0.48539961]
[1757484250661,0.3939,4308.9,4308.8,0.1943]
[1757484250865,0.7117,4308.9,4308.8,0.4073]
[1757484251165,0.3939,4308.9,4308.2,0.31]
[1757484251352,0.1262,4308.5,4308.4,0.1943]
[1757484251655,0.7351,4308.5,4308.4,0.1943]
[1757484251853,1.0529,4308.5,4308.4,0.1943]
[1757484256675,1.0529,4308.5,4308.1,0.31]
[1757484256962,0.7351,4308.5,4308.1,2.18441718]
[1757484257168,0.7024,4308.4,4308.3,0.2114]
[1757484257866,0.7024,4308.4,4308.3,0.4087]
[1757484258072,0.7024,4308.4,4308.3,0.7229]
[1757484258868,0.2916,4308.9,4308.4,0.3142]
[1757484259073,0.2916,4308.9,4308.7,0.7229]
[1757484259267,0.4878,4309.4,4309.3,0.4087]
[1757484259571,0.9404,4309.4,4309.3,0.7229]
[1757484259766,0.7024,4309.4,4309.3,0.4087]
[1757484259972,0.5296,4309.4,4309.3,0.7229]
[1757484260760,0.238,4309.5,4309.3,0.7229]
[1757484260969,0.5296,4309.5,4309.4,0.7229]
[1757484261268,0.5296,4309.5,4309.4,1.97028435]
[1757484262173,0.7258,4309.5,4309.4,1.97028435]
[1757484262572,0.7258,4309.5,4309.4,0.90099849]
[1757484263374,1.06,4309.5,4309.4,0.17809849]
[1757484263572,2.28220757,4309.5,4309.4,0.17809849]
[1757484263969,1.06,4309.5,4309.4,0.17809849]
[1757484264169,1.06,4309.5,4309.4,0.58679849]
[1757484268882,1.06,4309.5,4309.4,0.38949849]
[1757484270693,1.06,4309.5,4309.4,0.58679849]
[1757484271390,0.822,4309.5,4309.4,0.58679849]
[1757484271595,1.06,4309.5,4309.4,0.58679849]
[1757484271790,1.22220757,4310.3,4309.4,0.90099849]
[1757484271992,0.9404,4309.9,4309.8,0.4087]
[1757484272190,0.9404,4309.9,4309.8,0.58679849]
[1757484273698,0.7258,4309.9,4309.8,0.90099849]
[1757484274996,0.9404,4309.9,4309.8,0.90099849]
[1757484275587,0.9404,4309.9,4309.8,1.73282898]
[1757484275788,0.9404,4309.9,4309.8,1.55473049]
[1757484275988,0.9404,4309.9,4309.8,1.72794741]
[1757484277897,0.9404,4309.9,4309.8,1.41374741]
[1757484278291,0.9404,4309.9,4309.8,1.00504741]
[1757484278491,2.16260757,4309.9,4309.8,1.00504741]
[1757484278695,2.16260757,4309.9,4309.8,0.17321692]
[1757484279296,2.16260757,4309.9,4309.8,1.00504741]
[1757484279985,2.16260757,4309.9,4309.8,1.21644741]
[1757484281097,0.7258,4309.9,4309.8,0.89611692]
[1757484282296,0.4878,4309.9,4309.8,0.89611692]
[1757484282491,0.7258,4309.9,4309.8,0.89611692]
[1757484282690,0.4878,4309.9,4309.8,0.89611692]
[1757484282892,0.2916,4309.9,4309.8,0.89611692]
[1757484284702,0.4878,4309.9,4309.8,0.89611692]
[1757484286001,0.4878,4309.9,4309.8,1.72873897]
[1757484287400,0.4878,4309.9,4309.8,0.89611692]
[1757484288302,0.7024,4309.9,4309.8,0.89611692]
[1757484290399,0.7024,4309.9,4309.8,2.14350127]
[1757484291002,0.7024,4309.9,4309.8,0.89611692]
[1757484291504,0.7024,4309.9,4309.8,0.58191692]
[1757484295805,0.7024,4309.9,4309.8,1.82930127]
[1757484298404,0.7024,4309.9,4309.8,0.58191692]
[1757484300109,0.7024,4309.9,4309.8,0.88215388]
[1757484300610,0.3193,4310.4,4310.3,0.7115]
[1757484300812,0.5262,4310.4,4310.3,0.88515388]
[1757484303112,0.7381,4310.4,4310.3,0.58535388]
[1757484303315,0.7381,4310.4,4310.3,0.38765388]
[1757484303513,0.7381,4310.4,4310.3,0.17365388]
[1757484304317,1.77020838,4310.4,4310.3,0.17365388]
[1757484309018,2.00720838,4310.4,4310.3,0.17365388]
[1757484313323,1.77020838,4310.4,4310.3,0.17365388]
[1757484313621,2.00720838,4310.4,4310.3,0.17365388]
[1757484313821,2.00720838,4310.4,4310.3,0.17338981]
[1757484314418,0.3193,4310.3,4309.6,1.66741453]
[1757484314717,0.3193,4310.3,4309.0,0.1255]
[1757484314718,1.03210838,4309.9,4309.0,0.4253]
[1757484314923,1.03210838,4309.1,4309.0,0.4253]
[1757484315120,1.26910838,4309.1,4309.0,0.6393]
[1757484316115,1.26910838,4309.1,4308.5,0.1255]
[1757484316319,1.03210838,4308.6,4307.4,1.85318363]
[1757484316518,1.03210838,4308.1,4308.0,0.3993]
[1757484319121,5.76726354,4308.1,4307.0,0.1255]
[1757484319325,1.03210838,4307.1,4307.0,0.6334]
[1757484319620,1.26910838,4307.1,4307.0,0.6334]
[1757484322220,1.26910838,4307.1,4306.0,1.14880838]
[1757484322221,1.26910838,4307.1,4306.0,0.1167]
[1757484322526,1.03210838,4306.6,4306.5,0.6334]
[1757484322821,1.03210838,4306.6,4306.5,0.8375]
[1757484330123,1.03210838,4306.6,4306.5,0.4362]
[1757484330621,1.03210838,4306.6,4306.0,0.1167]
[1757484330622,1.03210838,4306.6,4306.1,0.3107]
[1757484330821,1.03210838,4306.2,4306.1,0.3107]
[1757484331021,1.03210838,4306.2,4306.1,0.5079]
[1757484331623,1.03210838,4306.2,4306.1,0.712]
[1757484332330,33.435,4307.8,4306.2,0.3107]
[1757484332529,0.46918,4307.7,4307.1,0.5079]
[1757484332729,1.03210838,4307.2,4307.1,0.5079]
[1757484333622,1.03210838,4307.2,4307.1,0.712]
[1757484333818,33.435,4307.8,4307.6,0.5079]
[1757484334125,33.435,4307.8,4307.5,0.1167]
[1757484334126,1.26910838,4307.7,4307.5,0.1167]
[1757484334631,1.26910838,4307.7,4307.6,0.3107]
[1757484335428,1.26910838,4307.7,4307.6,0.5079]
[1757484335633,1.26910838,4307.7,4307.6,0.3107]
[1757484336227,0.3714,4306.6,4306.5,0.1167]
[1757484336435,0.3714,4306.6,4306.5,0.4274]
[1757484336436,1.75630838,4306.6,4306.5,0.4274]
[1757484341136,1.75630838,4306.6,4306.0,0.1167]
[1757484341433,0.4872,4306.2,4306.1,0.3107]
[1757484341822,1.51930838,4306.2,4306.1,0.3107]
[1757484342838,0.3714,4305.7,4305.6,0.5079]
[1757484343028,1.64050838,4305.7,4305.6,0.5079]
[1757484344324,1.75630838,4305.7,4305.6,0.5079]
[1757484344532,1.75630838,4305.7,4305.6,0.3107]
[1757484344730,0.1158,4305.6,4305.5,0.1167]
[1757484344932,0.3714,4305.6,4305.5,0.8287]
[1757484346032,0.4873,4305.6,4305.5,0.8287]
[1757484348238,0.4873,4305.6,4305.5,0.4274]
[1757484348434,0.3744,4305.2,4305.1,0.2112]
[1757484348635,0.4914,4305.2,4305.1,0.5317]
[1757484349436,0.3744,4305.2,4305.1,0.5317]
[1757484352537,0.3744,4305.2,4305.1,0.7279]
[1757484355030,0.4914,4305.2,4305.1,0.3205]
[1757484356437,0.4914,4305.2,4305.1,0.5317]
[1757484357438,0.3744,4305.2,4305.1,0.5317]
[1757484358729,1.64350838,4305.2,4305.1,0.7279]
[1757484359443,0.1159,4305.6,4305.5,0.855]
[1757484359634,0.3529,4305.6,4305.5,0.855]
[1757484359836,0.86809313,4305.6,4305.5,0.855]
[1757484360037,1.05269313,4305.6,4305.5,0.855]
[1757484360235,1.35269313,4305.6,4305.5,0.4476]
[1757484360435,1.35269313,4305.6,4305.5,0.3205]
[1757484360641,2.38480151,4305.6,4305.5,0.3205]
[1757484360847,2.26940151,4305.6,4305.5,0.855]
[1757484361239,2.38480151,4305.6,4305.5,0.3205]
[1757484361540,0.3692,4305.2,4305.1,0.2112]
[1757484361735,1.51670838,4305.2,4304.5,0.1167]
[1757484361941,0.1954,4304.1,4304.0,0.5241]
[1757484362137,1.22750838,4304.1,4304.0,0.5241]
[1757484363848,1.03210838,4304.1,4304.0,0.8446]
[1757484364042,0.6981,4305.1,4305.0,0.2112]
[1757484364241,2.45509138,4305.1,4305.0,0.5317]
[1757484364546,2.45509138,4305.1,4305.0,0.3205]
[1757484364747,2.45509138,4305.1,4304.5,0.1271]
[1757484364948,1.22750838,4304.6,4304.5,0.855]
[1757484366449,1.42079408,4304.6,4304.5,0.855]
[1757484367046,1.53679408,4304.6,4304.5,0.855]
[1757484367552,1.77379408,4304.6,4304.5,0.855]
[1757484367752,2.27649408,4304.6,4304.5,0.7279]
[1757484368057,0.6981,4304.1,4304.0,0.5317]
[1757484368346,1.92349408,4304.1,4304.0,0.5317]
[1757484369449,1.92349408,4304.1,4304.0,0.7279]
[1757484370054,1.92349408,4304.1,4304.0,0.5317]
[1757484370753,1.92349408,4304.1,4304.0,0.855]
[1757484374263,1.92349408,4304.1,4304.0,0.7279]
[1757484374454,1.92349408,4304.1,4304.0,0.5317]
[1757484374658,1.92349408,4304.1,4303.6,0.3205]
[1757484374955,0.6981,4303.6,4303.5,0.5317]
[1757484375170,0.9351,4303.6,4303.5,0.3205]
[1757484375559,0.9351,4303.6,4303.5,0.5317]
[1757484375866,0.9351,4303.6,4303.0,0.1271]
[1757484376065,0.9351,4303.6,4303.1,0.3205]
[1757484376365,0.9351,4303.6,4303.0,0.1271]
[1757484376760,0.9351,4303.6,4303.1,0.3205]
[1757484376968,0.7063,4303.5,4303.4,0.2069]
[1757484377267,0.7063,4303.5,4303.4,0.5069]
[1757484380559,0.8141,4303.5,4303.0,0.1271]
[1757484380764,1.62339408,4303.2,4303.1,0.7034]
[1757484385272,1.93169408,4303.2,4303.1,0.7034]
[1757484385669,1.93169408,4303.2,4303.1,0.3]
[1757484385970,1.93169408,4303.2,4302.9,0.3]
[1757484386272,1.93169408,4303.2,4302.8,0.17662712]
[1757484386474,1.93169408,4303.2,4302.9,0.3]
[1757484387773,1.93169408,4303.2,4302.8,0.17662712]
[1757484388575,0.7063,4302.9,4302.8,0.17662712]
[1757484388874,0.7063,4302.9,4302.8,0.47662712]
[1757484389066,0.8223,4302.9,4302.8,0.68352712]
[1757484390872,0.514,4302.9,4302.8,0.88002712]
[1757484391081,0.353,4302.9,4302.8,0.88002712]
[1757484391576,0.116,4302.9,4302.8,0.88002712]
[1757484393778,0.3141,4302.9,4302.8,0.88002712]
[1757484393980,0.116,4302.9,4302.8,0.88002712]
[1757484401382,0.3141,4302.9,4302.8,0.88002712]
[1757484402186,0.514,4302.9,4302.8,0.88002712]
[1757484402486,0.8223,4302.9,4302.8,0.88002712]
[1757484403882,0.514,4302.9,4302.8,0.88002712]
[1757484404585,0.8223,4302.9,4302.8,0.88002712]
[1757484406284,0.8223,4302.9,4302.8,0.47662712]
[1757484406487,0.8223,4302.9,4302.8,0.17662712]
[1757484406987,0.8223,4302.9,4302.8,0.47932712]
[1757484407694,0.8223,4302.9,4302.8,0.17662712]
[1757484407988,0.8223,4302.9,4302.8,0.47932712]
[1757484408186,0.8223,4302.9,4302.8,0.88382712]
[1757484410592,0.8223,4302.9,4302.8,0.67902712]
[1757484410890,0.8223,4302.9,4302.8,0.47932712]
[1757484411990,0.7239,4302.0,4301.5,0.4298]
[1757484412292,0.7239,4301.7,4301.6,0.3027]
[1757484413195,0.8401,4301.7,4301.6,0.3027]
[1757484413490,2.06549408,4301.7,4301.6,0.3027]
[1757484414886,2.06549408,4301.7,4301.6,0.7072]
[1757484415089,0.3532,4301.7,4301.6,0.7072]
[1757484415306,0.1162,4301.7,4301.6,0.7072]
[1757484415492,0.3532,4301.7,4301.6,0.7072]
[1757484416089,0.1162,4301.7,4301.6,0.7072]
[1757484417392,0.7239,4301.1,4301.0,0.1273]
[1757484417694,0.7239,4300.6,4300.5,0.6267]
[1757484418893,0.7239,4300.6,4300.5,0.5024]
[1757484421398,0.7239,4300.6,4300.5,0.7072]
[1757484422095,1.22539408,4300.7,4300.5,0.8315]
[1757484422300,1.22539408,4301.1,4301.0,0.8315]
[1757484422490,1.39439408,4301.1,4301.0,0.8315]
[1757484422695,1.60759408,4301.1,4301.0,0.8315]
[1757484424500,1.90409408,4301.1,4301.0,0.8315]
[1757484424799,1.96909408,4301.1,4301.0,0.8315]
[1757484425503,0.2132,4300.6,4300.5,0.427]
[1757484425699,1.94929408,4300.6,4300.5,0.7072]
[1757484426403,1.76049238,4300.6,4300.5,0.7072]
[1757484428397,1.87669238,4300.6,4300.5,0.7072]
[1757484429698,1.87669238,4300.6,4300.5,0.1997]
[1757484429999,1.87669238,4300.6,4300.1,0.7072]
[1757484430000,0.7239,4300.2,4300.1,0.7072]
[1757484430200,1.76049238,4300.2,4300.1,0.7072]
[1757484430898,1.76049238,4300.2,4300.0,0.1997]
[1757484430899,0.4274,4300.1,4300.0,0.1997]
[1757484431101,0.7239,4300.1,4300.0,0.8315]
[1757484431399,0.2132,4300.1,4300.0,0.8315]
[1757484432407,1.03659238,4300.2,4300.0,0.8315]
[1757484432408,1.24979238,4300.2,4300.1,0.7072]
[1757484433304,1.03659238,4300.2,4300.1,0.7072]
[1757484433702,1.24979238,4300.2,4300.1,0.7072]
[1757484434099,1.03659238,4300.2,4300.1,0.7072]
[1757484435413,0.5335,4300.5,4300.2,0.3027]
[1757484435611,1.76049238,4300.3,4300.2,0.5024]
[1757484435802,1.76049238,4300.3,4300.2,0.7072]
[1757484436113,1.46399238,4300.3,4300.2,0.7072]
[1757484436502,0.7239,4300.3,4300.2,0.7072]
[1757484436703,1.76049238,4300.3,4300.2,0.7072]
[1757484439817,0.2132,4300.3,4300.2,0.7072]
[1757484440122,1.03659238,4300.5,4300.3,0.3188]
[1757484440319,1.03659238,4300.5,4300.0,0.1243]
[1757484440320,0.1162,4300.6,4300.5,0.8558]
[1757484440615,1.03659238,4301.3,4301.0,0.1181]
[1757484440827,1.03659238,4301.3,4301.2,0.4189]
[1757484441016,1.03659238,4301.3,4301.2,0.7377]
[1757484441932,1.03659238,4301.6,4301.5,0.8558]
[1757484442116,1.24169238,4301.6,4301.5,0.8558]
[1757484442314,1.53789238,4301.6,4301.5,0.8558]
[1757484442517,1.74109238,4301.6,4301.5,0.8558]
[1757484443927,1.74109238,4301.6,4301.5,0.7377]
[1757484444723,1.74109238,4301.6,4301.1,0.3188]
[1757484444928,1.74109238,4301.2,4301.1,0.7377]
[1757484445520,0.7045,4301.2,4301.1,0.7377]
[1757484445719,1.74109238,4301.2,4301.1,0.7377]
[1757484445921,0.7045,4301.2,4301.1,0.7377]
[1757484446222,1.74109238,4301.2,4301.1,0.7377]
[1757484446729,1.44489238,4301.2,4301.1,0.7377]
[1757484447028,1.03659238,4301.2,4301.1,0.7377]
[1757484447427,1.03659238,4301.5,4301.2,0.3188]
[1757484447728,1.24169238,4301.5,4301.4,0.4189]
[1757484448026,1.24169238,4301.5,4301.4,0.7377]
[1757484448222,1.03659238,4301.5,4301.4,0.7377]
[1757484449520,1.24169238,4301.5,4301.4,0.7377]
[1757484451629,1.53789238,4301.5,4301.4,0.7377]
[1757484452028,1.24169238,4301.5,4301.4,0.7377]
[1757484452728,1.53789238,4301.5,4301.4,0.7377]
[1757484453131,1.53789238,4301.5,4301.0,0.1181]
[1757484453132,0.8543,4302.0,4301.9,0.5265]
[1757484453429,1.74109238,4302.0,4301.9,0.7377]
[1757484454031,1.97809238,4302.0,4301.9,0.7377]
[1757484456128,33.498,4302.2,4302.1,0.4189]
[1757484456326,33.498,4302.2,4302.1,0.7377]
[1757484456729,0.2962,4302.6,4302.5,0.4189]
[1757484456730,0.7045,4302.6,4302.5,0.4189]
[1757484456932,0.9415,4302.6,4302.5,0.8558]
[1757484457132,0.7383,4302.6,4302.5,0.8558]
[1757484458830,0.4421,4302.6,4302.5,0.8558]
[1757484459233,0.4122,4302.9,4302.5,0.8558]
[1757484459433,0.116,4302.9,4302.8,0.4189]
[1757484459627,0.2051,4302.9,4302.8,0.7377]
[1757484460532,0.5013,4302.9,4302.8,0.7377]
[1757484460734,0.2051,4302.9,4302.8,0.7377]
[1757484462835,1.89089238,4303.2,4303.1,0.7377]
[1757484463027,1.77489238,4303.2,4303.1,0.7377]
[1757484464126,1.53789238,4303.2,4303.1,0.7377]
[1757484466431,0.353,4303.4,4303.1,0.7377]
[1757484466633,1.68579238,4303.4,4303.2,0.3188]
[1757484466835,0.2051,4303.3,4303.2,0.7377]
[1757484467030,0.727,4303.3,4303.2,0.7377]
[1757484467536,1.38959238,4303.4,4303.2,0.4189]
[1757484467837,0.6376,4303.4,4303.3,0.7173]
[1757484468043,0.2149,4303.4,4303.3,0.7173]
[1757484469632,0.237,4303.5,4303.3,0.7173]
[1757484469938,0.4519,4303.5,4303.4,0.7173]
[1757484471841,0.116,4303.6,4303.5,0.8458]
[1757484472135,0.237,4303.9,4303.5,0.549]
[1757484472328,0.2149,4303.8,4303.7,0.7173]
[1757484472739,0.3324,4304.5,4304.4,0.2061]
[1757484473040,0.5476,4304.5,4304.4,0.5029]
[1757484473441,0.8543,4304.5,4304.4,0.5029]
[1757484473837,0.7368,4304.5,4304.4,0.7173]
[1757484474442,0.7368,4304.5,4304.0,0.1285]
[1757484474443,0.863,4304.5,4304.1,0.2968]
[1757484474643,0.863,4304.5,4304.1,0.7173]
[1757484474644,1.77339238,4304.2,4304.1,0.7173]
[1757484475947,0.7368,4304.2,4304.1,0.7173]
[1757484477847,1.03659238,4304.3,4304.1,0.7173]
[1757484478148,1.25149238,4304.6,4304.5,0.8458]
[1757484478448,1.55819238,4304.6,4304.5,0.8458]
[1757484479147,1.77339238,4304.6,4304.5,0.8458]
[1757484479647,1.77339238,4304.6,4304.5,0.5029]
[1757484480254,0.2149,4303.7,4303.6,0.7173]
[1757484481542,1.77339238,4303.7,4303.6,0.7173]
[1757484481743,0.4301,4303.7,4303.6,0.7173]
[1757484481951,0.2149,4303.7,4303.6,0.7173]
[1757484483051,0.7368,4303.7,4303.6,0.7173]
[1757484483847,0.7368,4303.7,4303.2,0.18573926]
[1757484483848,0.2149,4303.3,4303.2,0.5029]
[1757484484147,0.7368,4303.2,4303.1,5.7]
[1757484484343,0.7368,4303.2,4303.1,6.2029]
[1757484485046,0.7368,4303.2,4303.1,0.5029]
[1757484485447,0.7368,4303.2,4303.1,0.7173]
[1757484485643,0.3067,4303.5,4303.1,0.7173]
[1757484485850,0.2149,4303.3,4303.2,0.7173]
[1757484486048,0.5216,4303.3,4303.2,0.7173]
[1757484486249,0.7368,4303.3,4303.2,0.7173]
[1757484486754,0.2149,4303.3,4303.2,0.7173]
[1757484486945,0.3067,4303.6,4303.5,0.1285]
[1757484487150,0.7368,4303.6,4303.5,0.8458]
[1757484488254,0.7368,4303.6,4303.5,0.7173]
[1757484488657,0.7368,4303.6,4303.5,0.8458]
[1757484489649,0.5216,4303.9,4303.8,0.4205]
[1757484489856,0.5216,4303.9,4303.8,0.7173]
[1757484490359,0.2149,4303.9,4303.8,0.7173]
[1757484490557,0.7923,4304.5,4304.4,0.2061]
[1757484490753,0.9728,4304.5,4304.4,0.5029]
[1757484491060,1.099,4304.5,4304.4,0.2061]
[1757484491358,1.099,4304.5,4304.0,0.1285]
[1757484491561,0.863,4304.5,4304.1,0.2968]
[1757484491751,0.863,4304.5,4304.0,0.1285]
[1757484491948,0.863,4304.5,4304.1,0.2968]
[1757484492151,0.863,4304.5,4304.0,0.1285]
[1757484492556,0.863,4304.5,4304.1,0.2968]
[1757484492862,0.863,4304.5,4304.0,0.1285]
[1757484493660,0.863,4304.5,4304.1,0.2968]
[1757484494055,0.863,4304.5,4304.0,0.1285]
[1757484494257,0.863,4304.5,4304.1,0.2968]
[1757484494561,0.863,4304.5,4304.0,0.1285]
[1757484494757,0.863,4304.5,4304.1,0.2968]
[1757484494961,0.863,4304.5,4304.0,0.1285]
[1757484495361,0.5563,4304.5,4304.4,0.2061]
[1757484495561,0.7368,4304.5,4304.4,0.7173]
[1757484497361,1.34169723,4304.6,4304.4,0.4205]
[1757484497362,0.116,4304.6,4304.4,0.4205]
[1757484497561,0.116,4304.6,4304.5,0.8493]
[1757484497858,0.7284,4304.6,4304.5,0.7298]
[1757484498869,0.8444,4304.6,4304.5,0.7298]
[1757484499065,0.8444,4304.6,4304.5,0.8493]
[1757484499368,0.5371,4304.6,4304.5,0.8493]
[1757484499864,0.8444,4304.6,4304.5,0.8493]
[1757484503360,0.8444,4304.6,4304.5,0.7298]
[1757484503660,0.8444,4304.6,4304.5,0.2019]
[1757484503866,0.7284,4304.2,4304.1,5.7]
[1757484504362,0.7284,4304.2,4304.1,6.2247]
[1757484504557,0.7284,4304.2,4304.1,0.5247]
[1757484505463,0.7284,4304.2,4304.1,0.7298]
[1757484508659,0.2055,4304.2,4304.1,0.7298]
[1757484509163,0.116,4304.6,4304.2,0.3228]
[1757484509363,0.116,4304.6,4304.5,0.8493]
[1757484509670,0.8444,4304.6,4304.5,0.8493]
[1757484512262,0.3215,4304.6,4304.5,0.8493]
[1757484512462,0.116,4304.6,4304.5,0.8493]
[1757484513164,0.3215,4304.6,4304.5,0.8493]
[1757484513366,0.6288,4304.6,4304.5,0.8493]
[1757484513761,0.8444,4304.6,4304.5,0.8493]
[1757484514063,0.8444,4304.6,4304.5,0.7298]
[1757484515769,0.8444,4304.6,4304.5,0.8493]
[1757484517572,0.116,4304.6,4304.5,0.8493]
[1757484517763,0.3215,4304.6,4304.5,0.8493]
[1757484519670,0.6288,4304.6,4304.5,0.8493]
[1757484521369,0.3215,4304.6,4304.5,0.8493]
[1757484525571,0.6288,4304.6,4304.5,0.8493]
[1757484529983,0.8436,4304.6,4304.5,0.8493]
[1757484531482,0.8436,4304.6,4304.2,1.87302642]
[1757484531483,0.4197,4304.3,4304.2,1.87302642]
[1757484531685,0.316,4304.7,4304.2,0.7267]
[1757484531879,0.2049,4304.5,4304.4,0.7267]
[1757484532081,0.2049,4304.5,4304.4,2.3996205]
[1757484532783,0.3209,4304.5,4304.4,2.3996205]
[1757484533684,0.6369,4304.5,4304.4,2.3996205]
[1757484534080,0.9718,4304.5,4304.4,1.8888205]
[1757484534285,0.6558,4304.5,4304.3,1.6729205]
[1757484534480,0.7357,4304.4,4304.3,1.6729205]
[1757484534680,0.7357,4304.4,4304.3,2.1922205]
[1757484535782,0.7357,4304.4,4304.3,2.3996205]
[1757484536579,0.7357,4304.4,4304.3,0.7267]
[1757484540084,0.4197,4304.4,4304.3,0.7267]
[1757484540388,0.116,4304.5,4304.4,0.7267]
[1757484542586,0.8517,4304.5,4304.4,0.7267]
[1757484543288,0.9718,4304.5,4304.4,1.67286382]
[1757484543480,0.9718,4304.5,4304.3,1.67286382]
[1757484543481,0.6558,4304.5,4304.3,1.67286382]
[1757484543681,0.7357,4304.4,4304.3,1.97626382]
[1757484544581,0.7357,4304.4,4304.3,2.19216382]
[1757484545485,1.96139723,4304.4,4304.3,1.67286382]
[1757484546191,1.64539723,4304.4,4304.2,1.67286382]
[1757484546486,0.7357,4304.3,4304.2,1.97626382]
[1757484546683,0.7357,4304.3,4304.2,2.19216382]
[1757484547490,0.7357,4304.3,4304.2,1.67286382]
[1757484547789,4.4197,4304.3,4303.7,0.3034]
[1757484547993,1.22569723,4303.8,4303.7,0.3034]
[1757484548183,1.22569723,4303.8,4303.7,0.5193]
[1757484548385,0.116,4304.5,4304.4,0.2159]
[1757484548691,1.3867107,4304.5,4304.4,0.7267]
[1757484548887,1.3867107,4304.5,4304.4,0.3034]
[1757484549287,1.3867107,4304.5,4304.4,0.5193]
[1757484549786,1.3867107,4304.5,4304.4,0.7267]
[1757484550887,1.1507107,4304.5,4304.4,0.7267]
[1757484558794,34.73267963,4305.9,4304.4,0.7267]
[1757484558994,1.0347107,4305.3,4305.2,0.714]
[1757484566495,1.0347107,4305.3,4305.0,0.1274]
[1757484566704,1.0347107,4305.1,4304.6,0.3039]
[1757484566909,1.0347107,4304.7,4304.6,0.3039]
[1757484567096,1.0347107,4304.7,4304.6,0.5069]
[1757484568307,1.0347107,4304.7,4304.6,0.3039]
[1757484568510,1.0347107,4304.7,4304.5,0.1274]
[1757484568697,1.0347107,4304.7,4304.0,0.3254]
[1757484568900,1.0347107,4304.2,4304.1,0.5069]
[1757484569511,1.0347107,4304.2,4304.1,0.3039]
[1757484572212,1.0347107,4304.2,4304.0,0.1224]
[1757484572418,1.0347107,4304.2,4304.1,0.3039]
[1757484573020,1.0347107,4304.2,4304.1,0.5069]
[1757484573315,0.143,4304.7,4304.1,0.203]
[1757484573521,0.37532,4304.7,4304.3,0.3039]
[1757484573722,0.143,4304.7,4304.1,0.5069]
[1757484574025,0.143,4304.7,4304.2,0.203]
[1757484574322,0.143,4304.7,4304.1,0.3039]
[1757484574626,1.0347107,4304.2,4304.1,0.714]
[1757484577322,1.0347107,4304.2,4304.1,0.3039]
[1757484578817,1.0347107,4304.2,4304.1,0.5069]
[1757484580225,1.0347107,4304.2,4304.1,0.714]
[1757484580818,1.0347107,4304.2,4304.1,0.5069]
[1757484586332,1.0347107,4304.2,4304.1,0.714]
[1757484592233,1.0347107,4304.2,4304.1,0.3039]
[1757484593244,1.0347107,4304.2,4303.7,0.3143]
[1757484593542,1.0347107,4303.8,4303.5,0.3269]
[1757484593733,1.0347107,4303.8,4303.6,0.5188]
[1757484593933,1.0347107,4303.8,4303.6,0.2045]
[1757484594134,1.0347107,4303.8,4303.7,0.3143]
[1757484595644,1.0347107,4303.8,4303.7,0.5188]
[1757484596235,1.0347107,4303.8,4303.7,0.7305]
[1757484598838,0.236,4304.2,4303.8,0.3143]
[1757484599041,0.236,4304.2,4304.1,0.4162]
[1757484599343,0.236,4304.2,4304.1,0.7305]
[1757484600239,1.2707107,4304.2,4304.1,0.7305]
[1757484602549,1.0347107,4304.2,4304.1,0.3143]
[1757484603843,1.0347107,4304.2,4304.1,0.5188]
[1757484604550,1.0347107,4304.2,4304.1,0.3143]
[1757484605649,0.236,4304.3,4304.2,0.5188]
[1757484605851,1.2707107,4304.3,4304.2,0.7305]
[1757484607050,1.2707107,4304.3,4304.2,0.74109701]
[1757484609755,1.2707107,4304.3,4304.2,0.32489701]
[1757484609949,1.2707107,4304.3,4304.2,0.01059701]
[1757484610151,6.03892068,4304.3,4304.2,0.01059701]
[1757484610348,6.23003927,4304.3,4304.2,0.01059701]